fUSD/lending_fUSD_20240708
["ID","MTS","AMOUNT","RATE_DAILY","PERIOD"]
[331486703,1720438338820,-500.0,0.00049315,120]
[331486704,1720438338871,-500.0,0.00049315,120]
[331486705,1720438338924,-500.0,0.00049315,120]
[331486706,1720438338976,-500.0,0.00049315,120]
[331486707,1720438339028,-500.0,0.00049315,120]
[331486708,1720438339080,-500.0,0.00049315,120]
[331486709,1720438339130,-500.0,0.00049315,120]
[331486710,1720438339180,-4446.26,0.00049315,120]
[331486711,1720438339231,-500.0,0.00049315,120]
[331486712,1720438339281,-500.0,0.00049315,120]
[331486713,1720438339334,-529.96,0.00049315,120]
[331486714,1720438339385,-500.0,0.00049315,120]
[331486715,1720438339434,-737.86,0.00049315,120]
[331486716,1720438339486,-564.21,0.00049315,120]
[331486717,1720438339536,-500.0,0.00049315,120]
[331486718,1720438339588,-500.0,0.00049315,120]
[331486719,1720438339638,-503.95871644,0.00049315,120]
[331486720,1720438339690,-500.0,0.00049315,120]
[331486721,1720438339740,-988.15,0.00049315,120]
[331486722,1720438339791,-6909.46,0.00049315,120]
[331486723,1720438339841,-500.0,0.00049315,120]
[331486724,1720438339892,-6124.77,0.00049315,120]
[331486725,1720438339943,-500.0,0.00049315,120]
[331486726,1720438339996,-7434.29,0.00049315,120]
[331486727,1720438340050,-1564.94,0.00049315,120]
[331486728,1720438340100,-531.73,0.00049315,120]
[331486729,1720438340152,-500.0,0.00049315,120]
[331486730,1720438340203,-511.28077079,0.00049315,120]
[331486731,1720438340252,-500.0,0.00049315,120]
[331486732,1720438340303,-3097.92,0.00049315,120]
[331486733,1720438340354,-500.0,0.00049315,120]
[331486734,1720438340410,-500.0,0.00049315,120]
[331486735,1720438340465,-500.0,0.00049315,120]
[331486736,1720438340516,-625.62,0.00049315,120]
[331486737,1720438340567,-500.0,0.00049315,120]
[331486738,1720438340619,-4977.25,0.00049315,120]
[331486739,1720438340674,-2569.11,0.00049315,120]
[331486740,1720438340726,-817.49,0.00049315,120]
[331486741,1720438340778,-500.0,0.00049315,120]
[331486742,1720438340887,-931.33,0.00049315,120]
[331486743,1720438340939,-500.0,0.00049315,120]
[331486744,1720438340989,-500.0,0.00049315,120]
[331486745,1720438341042,-6557.78,0.00049315,120]
[331486746,1720438341091,-4890.76,0.00049315,120]
[331486747,1720438341141,-8047.98,0.00049315,120]
[331486748,1720438341191,-926.07,0.00049315,120]
[331486749,1720438341238,-500.0,0.00049315,120]
[331486750,1720438341287,-500.0,0.00049315,120]
[331486751,1720438341334,-500.0,0.00049315,120]
[331486752,1720438341383,-500.0,0.00049315,120]
[331486753,1720438341432,-555.79,0.00049315,120]
[331486754,1720438341481,-296.12072372,0.00049315,120]
[331486755,1720438341531,-500.0,0.00049315,120]
[331486756,1720438341582,-500.0,0.00049315,120]
[331486757,1720438341633,-634.86,0.00049315,120]
[331486758,1720438341683,-500.0,0.00049315,120]
[331486759,1720438341731,-5071.97,0.00049315,120]
[331486760,1720438341780,-5197.47,0.00049315,120]
[331486761,1720438341831,-500.0,0.00049315,120]
[331486762,1720438341880,-12824.58,0.00049315,120]
[331486763,1720438341930,-500.0,0.00049315,120]
[331486764,1720438341980,-453.37669834,0.00049315,120]
[331486765,1720438342032,-737.63,0.00049315,120]
[331486766,1720438342083,-5000.69,0.00049315,120]
[331486767,1720438342134,-500.0,0.00049315,120]
[331486768,1720438342186,-500.0,0.00049315,120]
[331486769,1720438342236,-557.25,0.00049315,120]
[331486770,1720438342287,-979.51,0.00049315,120]
[331486771,1720438342337,-500.0,0.00049315,120]
[331486772,1720438342385,-500.0,0.00049315,120]
[331486773,1720438342435,-500.0,0.00049315,120]
[331486774,1720438342485,-500.0,0.00049315,120]
[331486775,1720438342535,-500.0,0.00049315,120]
[331486776,1720438342589,-564.74,0.00049315,120]
[331486777,1720438342638,-500.0,0.00049315,120]
[331486778,1720438342688,-500.0,0.00049315,120]
[331486779,1720438342740,-1089.79,0.00049315,120]
[331486780,1720438342794,-500.0,0.00049315,120]
[331486781,1720438342852,-500.0,0.00049315,120]
[331486782,1720438342907,-500.0,0.00049315,120]
[331486783,1720438342960,-1000.0,0.00049315,120]
[331486784,1720438343011,-602.11,0.00049315,120]
[331486785,1720438343061,-504.5418072,0.00049315,120]
[331486786,1720438343110,-3962.26,0.00049315,120]
[331486787,1720438343160,-5967.11,0.00049315,120]
[331486788,1720438343207,-500.0,0.00049315,120]
[331486789,1720438343254,-816.01,0.00049315,120]
[331486790,1720438343302,-500.0,0.00049315,120]
[331486791,1720438343351,-500.0,0.00049315,120]
[331486792,1720438343400,-500.0,0.00049315,120]
[331486793,1720438343455,-500.0,0.00049315,120]
[331486794,1720438343504,-952.17,0.00049315,120]
[331486795,1720438343554,-518.09,0.00049315,120]
[331486796,1720438343604,-500.0,0.00049315,120]
[331486797,1720438343654,-3856.8,0.00049315,120]
[331486798,1720438343703,-500.0,0.00049315,120]
[331486799,1720438343754,-500.0,0.00049315,120]
[331486800,1720438343803,-1444.4,0.00049315,120]
[331486801,1720438343856,-500.0,0.00049315,120]
[331486802,1720438343911,-500.0,0.00049315,120]
[331486803,1720438343967,-4328.98,0.00049315,120]
[331486804,1720438344021,-602.68,0.00049315,120]
[331486805,1720438344074,-500.0,0.00049315,120]
[331486806,1720438344129,-500.0,0.00049315,120]
[331486807,1720438344183,-500.0,0.00049315,120]
[331486808,1720438344236,-500.0,0.00049315,120]
[331486809,1720438344291,-1667.53,0.00049315,120]
[331486810,1720438344344,-500.0,0.00049315,120]
[331486811,1720438344396,-500.0,0.00049315,120]
[331486812,1720438344451,-500.0,0.00049315,120]
[331486813,1720438344505,-500.0,0.00049315,120]
[331486814,1720438344563,-4918.52,0.00049315,120]
[331486815,1720438344618,-1665.81,0.00049315,120]
[331486816,1720438344670,-500.0,0.00049315,120]
[331486817,1720438344722,-500.0,0.00049315,120]
[331486818,1720438344775,-500.0,0.00049315,120]
[331486819,1720438344825,-1892.85,0.00049315,120]
[331486820,1720438344877,-500.0,0.00049315,120]
[331486821,1720438344929,-2033.08,0.00049315,120]
[331486822,1720438344981,-1343.01,0.00049315,120]
[331486823,1720438345032,-500.0,0.00049315,120]
[331486824,1720438345082,-500.0,0.00049315,120]
[331486825,1720438345133,-500.0,0.00049315,120]
[331486826,1720438345184,-3737.99,0.00049315,120]
[331486827,1720438345236,-500.0,0.00049315,120]
[331486828,1720438345288,-500.0,0.00049315,120]
[331486829,1720438345337,-500.0,0.00049315,120]
[331486830,1720438345386,-681.78,0.00049315,120]
[331486831,1720438345436,-8334.2,0.00049315,120]
[331486832,1720438345487,-2432.96,0.00049315,120]
[331486833,1720438345539,-500.0,0.00049315,120]
[331486834,1720438345590,-500.0,0.00049315,120]
[331486835,1720438345642,-2303.71,0.00049315,120]
[331486836,1720438345694,-500.0,0.00049315,120]
[331486837,1720438345747,-640.27739329,0.00049315,120]
[331486838,1720438345799,-500.0,0.00049315,120]
[331486839,1720438345853,-500.0,0.00049315,120]
[331486840,1720438345904,-500.0,0.00049315,120]
[331486841,1720438345955,-553.02516015,0.00049315,120]
[331486842,1720438346007,-500.0,0.00049315,120]
[331486843,1720438346059,-500.0,0.00049315,120]
[331486844,1720438346109,-7113.69,0.00049315,120]
[331486845,1720438346158,-500.0,0.00049315,120]
[331486846,1720438346208,-500.0,0.00049315,120]
[331486847,1720438346338,-2372.86,0.00049315,120]
[331486848,1720438346425,-500.0,0.00049315,120]
[331486849,1720438346478,-3895.56,0.00049315,120]
[331486850,1720438346531,-6365.6,0.00049315,120]
[331486851,1720438346582,-500.0,0.00049315,120]
[331486852,1720438346633,-500.0,0.00049315,120]
[331486853,1720438346683,-500.0,0.00049315,120]
[331486854,1720438346733,-500.0,0.00049315,120]
[331486855,1720438346784,-4737.12,0.00049315,120]
[331486856,1720438346833,-500.14385161,0.00049315,120]
[331486857,1720438346885,-9769.22,0.00049315,120]
[331486858,1720438346936,-4028.67,0.00049315,120]
[331486859,1720438346986,-2932.06,0.00049315,120]
[331486860,1720438347036,-297.42,0.00049315,120]
[331486861,1720438347084,-500.0,0.00049315,120]
[331486862,1720438347135,-3721.64,0.00049315,120]
[331486863,1720438347184,-579.46,0.00049315,120]
[331486864,1720438347232,-559.94,0.00049315,120]
[331486865,1720438347280,-1491.25,0.00049315,120]
[331486866,1720438347331,-9789.62,0.00049315,120]
[331486867,1720438347381,-1519.45,0.00049315,120]
[331486868,1720438347430,-552.8,0.00049315,120]
[331486869,1720438347479,-500.0,0.00049315,120]
[331486870,1720438347526,-500.0,0.00049315,120]
[331486871,1720438347575,-18403.09,0.00049315,120]
[331486872,1720438347624,-5134.91,0.00049315,120]
[331486873,1720438347680,-2497.28,0.00049315,120]
[331486874,1720438347733,-500.0,0.00049315,120]
[331486875,1720438347786,-506.61,0.00049315,120]
[331486876,1720438347838,-500.0,0.00049315,120]
[331486877,1720438347891,-1198.7,0.00049315,120]
[331486878,1720438347947,-1667.87,0.00049315,120]
[331486879,1720438347998,-5150.8,0.00049315,120]
[331486880,1720438348048,-500.0,0.00049315,120]
[331486881,1720438348099,-14120.27,0.00049315,120]
[331486882,1720438348150,-8496.48,0.00049315,120]
[331486883,1720438348200,-666.9,0.00049315,120]
[331486884,1720438348251,-500.0,0.00049315,120]
[331486885,1720438348300,-500.0,0.00049315,120]
[331486886,1720438348352,-500.0,0.00049315,120]
[331486887,1720438348403,-77163.49,0.00049315,120]
[331486888,1720438348454,-500.0,0.00049315,120]
[331486889,1720438348504,-1701.37,0.00049315,120]
[331486890,1720438348555,-500.0,0.00049315,120]
[331486891,1720438348604,-1695.49,0.00049315,120]
[331486892,1720438348653,-3671.69,0.00049315,120]
[331486893,1720438348704,-500.0,0.00049315,120]
[331486894,1720438348759,-43789.77,0.00049315,120]
[331486895,1720438348810,-500.0,0.00049315,120]
[331486896,1720438348861,-744.56,0.00049315,120]
[331486897,1720438348915,-5882.08,0.00049315,120]
[331486898,1720438348967,-500.0,0.00049315,120]
[331486899,1720438349020,-500.0,0.00049315,120]
[331486900,1720438349074,-2648.44,0.00049315,120]
[331486901,1720438349126,-4253.18,0.00049315,120]
[331486902,1720438349179,-500.0,0.00049315,120]
[331486903,1720438349231,-500.0,0.00049315,120]
[331486904,1720438349283,-500.0,0.00049315,120]
[331486905,1720438349340,-2191.17,0.00049315,120]
[331486906,1720438349395,-500.0,0.00049315,120]
[331486907,1720438349447,-500.0,0.00049315,120]
[331486908,1720438349498,-4023.3,0.00049315,120]
[331486909,1720438349551,-500.0,0.00049315,120]
[331486910,1720438349602,-500.0,0.00049315,120]
[331486911,1720438349654,-1885.58,0.00049315,120]
[331486912,1720438349707,-500.0,0.00049315,120]
[331486913,1720438349756,-500.0,0.00049315,120]
[331486914,1720438349808,-500.0,0.00049315,120]
[331486915,1720438349862,-20208.54,0.00049315,120]
[331486916,1720438349915,-5732.02,0.00049315,120]
[331486917,1720438349971,-4518.2,0.00049315,120]
[331486918,1720438350026,-3467.68,0.00049315,120]
[331486919,1720438350078,-240.24352775,0.00049394,30]
[331486920,1720438350132,-174.80956136,0.00049408,30]
[331486921,1720438350182,-240.24352775,0.00049417,30]
[331486922,1720438350233,-155.51654116,0.0004957,30]
[331486923,1720438350284,-500.0,0.00049589,120]
[331486924,1720438350335,-858.68,0.00049589,120]
[331486925,1720438350385,-500.0,0.00049589,120]
[331486926,1720438350436,-1349.79,0.00049589,120]
[331486927,1720438350486,-501.59874757,0.00049589,120]
[331486928,1720438350538,-500.0,0.00049589,120]
[331486929,1720438350590,-502.55,0.00049589,120]
[331486930,1720438350640,-216.54122452,0.00049589,30]
[331486931,1720438350691,-500.0,0.00049589,120]
[331486932,1720438350742,-500.0,0.00049589,120]
[331486933,1720438350794,-500.0,0.00049589,120]
[331486934,1720438350846,-3020.56,0.00049589,120]
[331486935,1720438350897,-500.0,0.00049589,120]
[331486936,1720438350950,-500.83097908,0.00049589,120]
[331486937,1720438351257,-500.0,0.00049589,120]
[331486938,1720438351311,-500.0,0.00049589,120]
[331486939,1720438351367,-500.0,0.00049589,120]
[331486940,1720438351418,-500.0,0.00049589,120]
[331486941,1720438351471,-500.0,0.00049589,120]
[331486942,1720438351524,-500.0,0.00049589,120]
[331486943,1720438351576,-1293.82,0.00049589,120]
[331486944,1720438351626,-1078.52,0.00049589,120]
[331486945,1720438351680,-1674.53,0.00049589,120]
[331486946,1720438351730,-500.0,0.00049589,120]
[331486947,1720438351779,-500.0,0.00049589,120]
[331486948,1720438351830,-500.0,0.00049589,120]
[331486949,1720438351878,-834.62,0.00049589,120]
[331486950,1720438351928,-500.0,0.00049589,120]
[331486951,1720438351979,-500.0,0.00049589,120]
[331486952,1720438352028,-625.62,0.00049589,120]
[331486953,1720438352076,-500.0,0.00049589,120]
[331486954,1720438352125,-622.61848671,0.00049589,120]
[331486955,1720438352172,-1390.62,0.00049589,120]
[331486956,1720438352218,-1406.2,0.00049589,120]
[331486957,1720438352263,-500.0,0.00049589,120]
[331486958,1720438352309,-500.0,0.00049589,120]
[331486959,1720438352355,-500.0,0.00049589,120]
[331486960,1720438352403,-500.0,0.00049589,120]
[331486961,1720438352447,-500.0,0.00049589,120]
[331486962,1720438352492,-500.0,0.00049589,120]
[331486963,1720438352538,-500.0,0.00049589,120]
[331486964,1720438352579,-216.54122452,0.00049589,30]
[331486965,1720438352629,-500.0,0.00049589,120]
[331486966,1720438352686,-500.0,0.00049589,120]
[331486967,1720438352740,-500.0,0.00049589,120]
[331486968,1720438352794,-500.0,0.00049589,120]
[331486969,1720438352845,-500.0,0.00049589,120]
[331486970,1720438352898,-500.0,0.00049589,120]
[331486971,1720438352946,-500.0,0.00049589,120]
[331486972,1720438352994,-500.0,0.00049589,120]
[331486973,1720438353042,-500.0,0.00049589,120]
[331486974,1720438353089,-500.0,0.00049589,120]
[331486975,1720438353139,-669.87,0.00049589,120]
[331486976,1720438353185,-500.0,0.00049589,120]
[331486977,1720438353238,-500.0,0.00049589,120]
[331486978,1720438353288,-500.0,0.00049589,120]
[331486979,1720438353339,-500.0,0.00049589,120]
[331486980,1720438353391,-500.0,0.00049589,120]
[331486981,1720438353442,-500.0,0.00049589,120]
[331486982,1720438353493,-500.0,0.00049589,120]
[331486983,1720438353546,-500.0,0.00049589,120]
[331486984,1720438353599,-483.96334421,0.00049589,120]
[331486985,1720438353651,-500.0,0.00049589,120]
[331486986,1720438353703,-617.8,0.00049589,120]
[331486987,1720438353754,-500.0,0.00049589,120]
[331486988,1720438353806,-728.82,0.00049589,120]
[331486989,1720438353857,-2399.28,0.00049589,120]
[331486990,1720438353910,-500.0,0.00049589,120]
[331486991,1720438353964,-1434.06,0.00049589,120]
[331486992,1720438354016,-500.0,0.00049589,120]
[331486993,1720438354073,-510.34,0.00049589,120]
[331486994,1720438354131,-500.0,0.00049589,120]
[331486995,1720438354192,-500.0,0.00049589,120]
[331486996,1720438354246,-500.0,0.00049589,120]
[331486997,1720438354304,-500.0,0.00049589,120]
[331486998,1720438354359,-2007.19,0.00049589,120]
[331486999,1720438354413,-1253.66,0.00049589,120]
[331487000,1720438354466,-153.46,0.00049589,120]
[331487001,1720438354519,-500.0,0.00049589,120]
[331487002,1720438354575,-1628.65,0.00049589,120]
[331487003,1720438354631,-508.70431535,0.00049589,120]
[331487004,1720438354694,-1435.39,0.00049589,120]
[331487005,1720438354748,-2683.83,0.00049589,120]
[331487006,1720438354804,-500.0,0.00049589,120]
[331487007,1720438354859,-500.0,0.00049589,120]
[331487008,1720438354971,-1226.3,0.00049589,120]
[331487009,1720438355023,-856.13,0.00049589,120]
[331487010,1720438355075,-500.0,0.00049589,120]
[331487011,1720438355128,-1397.31,0.00049589,120]
[331487012,1720438355182,-500.0,0.00049589,120]
[331487013,1720438355235,-500.0,0.00049589,120]
[331487014,1720438355286,-602.51,0.00049589,120]
[331487015,1720438355340,-667.55,0.00049589,120]
[331487016,1720438355392,-500.0,0.00049589,120]
[331487017,1720438355445,-1620.69,0.00049589,120]
[331487018,1720438355497,-812.96,0.00049589,120]
[331487019,1720438355551,-255.84,0.00049589,120]
[331487020,1720438355601,-2144.73,0.00049589,120]
[331487021,1720438355651,-500.0,0.00049589,120]
[331487022,1720438355699,-591.2,0.00049589,120]
[331487023,1720438355747,-500.0,0.00049589,120]
[331487024,1720438355796,-500.0,0.00049589,120]
[331487025,1720438355843,-500.0,0.00049589,120]
[331487026,1720438355891,-500.0,0.00049589,120]
[331487027,1720438355939,-3560.63,0.00049589,120]
[331487028,1720438355986,-500.0,0.00049589,120]
[331487029,1720438356033,-1545.37,0.00049589,120]
[331487030,1720438356078,-565.17354269,0.00049589,120]
[331487031,1720438356125,-500.0,0.00049589,120]
[331487032,1720438356171,-500.0,0.00049589,120]
[331487033,1720438356215,-500.0,0.00049589,120]
[331487034,1720438356262,-500.0,0.00049589,120]
[331487035,1720438356309,-570.52,0.00049589,120]
[331487036,1720438356356,-505.85,0.00049589,120]
[331487037,1720438356406,-500.0,0.00049589,120]
[331487038,1720438356452,-500.0,0.00049589,120]
[331487039,1720438356500,-801.42,0.00049589,120]
[331487040,1720438356549,-500.0,0.00049589,120]
[331487041,1720438356594,-500.0,0.00049589,120]
[331487042,1720438356644,-409.76,0.00049589,120]
[331487043,1720438356690,-3858.43,0.00049589,120]
[331487044,1720438356738,-500.0,0.00049589,120]
[331487045,1720438356785,-2000.0,0.00049589,30]
[331487046,1720438356831,-500.0,0.00049589,120]
[331487047,1720438356880,-500.0,0.00049589,120]
[331487048,1720438356932,-431.05559134,0.00049589,120]
[331487049,1720438356981,-500.0,0.00049589,120]
[331487050,1720438357028,-551.68,0.00049589,120]
[331487051,1720438357076,-500.0,0.00049589,120]
[331487052,1720438357122,-500.0,0.00049589,120]
[331487053,1720438357170,-4446.26,0.00049589,120]
[331487054,1720438357215,-500.0,0.00049589,120]
[331487055,1720438357263,-500.0,0.00049589,120]
[331487056,1720438357310,-737.86,0.00049589,120]
[331487057,1720438357362,-564.21,0.00049589,120]
[331487058,1720438357411,-500.0,0.00049589,120]
[331487059,1720438357458,-500.0,0.00049589,120]
[331487060,1720438357505,-988.15,0.00049589,120]
[331487061,1720438357552,-6909.46,0.00049589,120]
[331487062,1720438357597,-6124.77,0.00049589,120]
[331487063,1720438357645,-7434.29,0.00049589,120]
[331487064,1720438357693,-1564.94,0.00049589,120]
[331487065,1720438357740,-3097.92,0.00049589,120]
[331487066,1720438357788,-500.0,0.00049589,120]
[331487067,1720438357834,-500.0,0.00049589,120]
[331487068,1720438357888,-500.0,0.00049589,120]
[331487069,1720438357938,-500.0,0.00049589,120]
[331487070,1720438357988,-2569.11,0.00049589,120]
[331487071,1720438358036,-817.49,0.00049589,120]
[331487072,1720438358085,-4977.25,0.00049589,120]
[331487073,1720438358133,-500.0,0.00049589,120]
[331487074,1720438358184,-931.33,0.00049589,120]
[331487075,1720438358227,-500.0,0.00049589,120]
[331487076,1720438358273,-500.0,0.00049589,120]
[331487077,1720438358318,-6557.78,0.00049589,120]
[331487078,1720438358367,-4890.76,0.00049589,120]
[331487079,1720438358415,-8047.98,0.00049589,120]
[331487080,1720438358459,-500.0,0.00049589,120]
[331487081,1720438358506,-926.07,0.00049589,120]
[331487082,1720438358550,-500.0,0.00049589,120]
[331487083,1720438358596,-500.0,0.00049589,120]
[331487084,1720438358642,-500.0,0.00049589,120]
[331487085,1720438358686,-634.86,0.00049589,120]
[331487086,1720438358733,-5071.97,0.00049589,120]
[331487087,1720438358781,-5197.47,0.00049589,120]
[331487088,1720438358828,-12824.58,0.00049589,120]
[331487089,1720438358876,-500.0,0.00049589,120]
[331487090,1720438358928,-737.63,0.00049589,120]
[331487091,1720438358981,-5000.69,0.00049589,120]
[331487092,1720438359034,-500.0,0.00049589,120]
[331487093,1720438359087,-500.0,0.00049589,120]
[331487094,1720438359141,-979.51,0.00049589,120]
[331487095,1720438359194,-500.0,0.00049589,120]
[331487096,1720438359249,-283.21,0.00049589,120]
[331487097,1720438359302,-500.0,0.00049589,120]
[331487098,1720438359354,-313.62,0.00049589,120]
[331487099,1720438359408,-263.67,0.00049589,120]
[331487100,1720438359466,-500.0,0.00049589,120]
[331487101,1720438359519,-1089.79,0.00049589,120]
[331487102,1720438359572,-500.0,0.00049589,120]
[331487103,1720438359624,-1000.0,0.00049589,120]
[331487104,1720438359678,-602.11,0.00049589,120]
[331487105,1720438359728,-3962.26,0.00049589,120]
[331487106,1720438359780,-816.01,0.00049589,120]
[331487107,1720438359832,-5967.11,0.00049589,120]
[331487108,1720438359884,-500.0,0.00049589,120]
[331487109,1720438359939,-500.0,0.00049589,120]
[331487110,1720438359992,-500.0,0.00049589,120]
[331487111,1720438360044,-500.0,0.00049589,120]
[331487112,1720438360095,-952.17,0.00049589,120]
[331487113,1720438360254,-500.0,0.00049589,120]
[331487114,1720438360309,-3856.8,0.00049589,120]
[331487115,1720438360361,-1444.4,0.00049589,120]
[331487116,1720438360411,-500.0,0.00049589,120]
[331487117,1720438360466,-4328.98,0.00049589,120]
[331487118,1720438360517,-602.68,0.00049589,120]
[331487119,1720438360567,-500.0,0.00049589,120]
[331487120,1720438360618,-500.0,0.00049589,120]
[331487121,1720438360669,-500.0,0.00049589,120]
[331487122,1720438360722,-1667.53,0.00049589,120]
[331487123,1720438360774,-500.0,0.00049589,120]
[331487124,1720438360823,-500.0,0.00049589,120]
[331487125,1720438360872,-257.21,0.00049589,120]
[331487126,1720438360923,-4918.52,0.00049589,120]
[331487127,1720438360975,-500.0,0.00049589,120]
[331487128,1720438361023,-1665.81,0.00049589,120]
[331487129,1720438361071,-500.0,0.00049589,120]
[331487130,1720438361120,-500.0,0.00049589,120]
[331487131,1720438361169,-1892.85,0.00049589,120]
[331487132,1720438361217,-2033.08,0.00049589,120]
[331487133,1720438361266,-1343.01,0.00049589,120]
[331487134,1720438361315,-500.0,0.00049589,120]
[331487135,1720438361367,-500.0,0.00049589,120]
[331487136,1720438361416,-500.0,0.00049589,120]
[331487137,1720438361464,-3737.99,0.00049589,120]
[331487138,1720438361514,-500.0,0.00049589,120]
[331487139,1720438361563,-500.0,0.00049589,120]
[331487140,1720438361611,-681.78,0.00049589,120]
[331487141,1720438361660,-8334.2,0.00049589,120]
[331487142,1720438361710,-2432.96,0.00049589,120]
[331487143,1720438361758,-500.0,0.00049589,120]
[331487144,1720438361807,-500.0,0.00049589,120]
[331487145,1720438361856,-2303.71,0.00049589,120]
[331487146,1720438361903,-500.0,0.00049589,120]
[331487147,1720438361950,-500.0,0.00049589,120]
[331487148,1720438361994,-500.0,0.00049589,120]
[331487149,1720438362039,-500.0,0.00049589,120]
[331487150,1720438362086,-500.0,0.00049589,120]
[331487151,1720438362128,-500.0,0.00049589,120]
[331487152,1720438362175,-500.0,0.00049589,120]
[331487153,1720438362222,-7113.69,0.00049589,120]
[331487154,1720438362268,-2372.86,0.00049589,120]
[331487155,1720438362315,-500.0,0.00049589,120]
[331487156,1720438362362,-3895.56,0.00049589,120]
[331487157,1720438362405,-6365.6,0.00049589,120]
[331487158,1720438362451,-190.19,0.00049589,120]
[331487159,1720438362495,-500.0,0.00049589,120]
[331487160,1720438362539,-500.0,0.00049589,120]
[331487161,1720438362584,-4737.12,0.00049589,120]
[331487162,1720438362627,-9769.22,0.00049589,120]
[331487163,1720438362674,-4028.67,0.00049589,120]
[331487164,1720438362718,-2932.06,0.00049589,120]
[331487165,1720438362762,-500.0,0.00049589,120]
[331487166,1720438362810,-3721.64,0.00049589,120]
[331487167,1720438362858,-579.46,0.00049589,120]
[331487168,1720438362908,-1491.25,0.00049589,120]
[331487169,1720438362955,-9789.62,0.00049589,120]
[331487170,1720438363001,-1519.45,0.00049589,120]
[331487171,1720438363047,-552.8,0.00049589,120]
[331487172,1720438363088,-500.0,0.00049589,120]
[331487173,1720438363132,-18403.09,0.00049589,120]
[331487174,1720438363176,-5134.91,0.00049589,120]
[331487175,1720438363219,-2497.28,0.00049589,120]
[331487176,1720438363261,-506.61,0.00049589,120]
[331487177,1720438363302,-1198.7,0.00049589,120]
[331487178,1720438363344,-1667.87,0.00049589,120]
[331487179,1720438363384,-5150.8,0.00049589,120]
[331487180,1720438363426,-14120.27,0.00049589,120]
[331487181,1720438363468,-8496.48,0.00049589,120]
[331487182,1720438363510,-666.9,0.00049589,120]
[331487183,1720438363553,-500.0,0.00049589,120]
[331487184,1720438363595,-500.0,0.00049589,120]
[331487185,1720438363640,-77163.49,0.00049589,120]
[331487186,1720438363684,-500.0,0.00049589,120]
[331487187,1720438363728,-1701.37,0.00049589,120]
[331487188,1720438363774,-500.0,0.00049589,120]
[331487189,1720438363820,-1695.49,0.00049589,120]
[331487190,1720438363865,-3671.69,0.00049589,120]
[331487191,1720438363917,-500.0,0.00049589,120]
[331487192,1720438363967,-43789.77,0.00049589,120]
[331487193,1720438364018,-500.0,0.00049589,120]
[331487194,1720438364069,-744.56,0.00049589,120]
[331487195,1720438364118,-5882.08,0.00049589,120]
[331487196,1720438364169,-500.0,0.00049589,120]
[331487197,1720438364219,-500.0,0.00049589,120]
[331487198,1720438364268,-4253.18,0.00049589,120]
[331487199,1720438364320,-2648.44,0.00049589,120]
[331487200,1720438364377,-500.00000001,0.00049589,120]
[331487201,1720438364428,-500.0,0.00049589,120]
[331487202,1720438364477,-2191.17,0.00049589,120]